bitfinex/quotes_SOLUSD_20250919
["timestamp","ask_amount","ask_price","bid_price","bid_amount"]
[1758262090751,26.48347294,245.36,245.35,1e-08]
[1758262091338,26.48347294,245.36,245.35,0.20000001]
[1758262092050,26.48347294,245.36,245.35,1e-08]
[1758262095371,31.26911689,245.36,245.35,1e-08]
[1758262095762,31.32911689,245.36,245.35,1e-08]
[1758262096161,30.61911689,245.36,245.35,1e-08]
[1758262097074,26.54347294,245.36,245.35,1e-08]
[1758262099362,31.32911689,245.36,245.35,1e-08]
[1758262099664,4.84564395,245.36,245.35,1e-08]
[1758262099860,0.77,245.36,245.35,1e-08]
[1758262100079,4.84564395,245.36,245.35,1e-08]
[1758262100664,16.10904402,245.36,245.35,1e-08]
[1758262100871,29.70463803,245.36,245.35,1e-08]
[1758262109160,11.32340007,245.36,245.35,1e-08]
[1758262120399,0.06,245.36,245.35,1e-08]
[1758262123788,0.06,245.36,245.35,26.00000001]
[1758262123995,0.06,245.36,245.35,26.20000001]
[1758262124307,0.06,245.36,245.35,26.00000001]
[1758262125780,0.06,245.36,245.35,30.07581007]
[1758262126905,0.78,245.36,245.35,1e-08]
[1758262127603,0.06,245.36,245.35,4.07581007]
[1758262129190,0.78,245.36,245.35,4.07581007]
[1758262129811,0.06,245.36,245.35,4.07581007]
[1758262130993,0.78,245.36,245.35,4.07581007]
[1758262131299,0.06,245.36,245.35,4.07581007]
[1758262131686,0.78,245.36,245.35,4.07581007]
[1758262131902,0.06,245.36,245.35,4.07581007]
[1758262132410,0.06,245.36,245.35,1e-08]
[1758262132608,0.06,245.36,245.35,0.20000001]
[1758262132811,0.06,245.39,245.35,31.62432315]
[1758262133117,0.78,245.39,245.35,31.42432315]
[1758262133914,0.78,245.39,245.36,26.0]
[1758262134629,0.72,245.38,245.35,1e-08]
[1758262136107,4.79541078,245.38,245.35,1e-08]
[1758262141105,0.72,245.38,245.35,1e-08]
[1758262141427,13.16710012,245.39,245.35,1e-08]
[1758262141636,0.67,245.37,245.35,1e-08]
[1758262142125,17.24225488,245.39,245.35,1e-08]
[1758262142431,0.67,245.37,245.35,1e-08]
[1758262143306,4.74548308,245.37,245.35,1e-08]
[1758262147040,0.67,245.37,245.35,1e-08]
[1758262147834,4.74548322,245.37,245.35,1e-08]
[1758262148039,0.67,245.37,245.35,1e-08]
[1758262148536,0.67,245.36,245.35,1e-08]
[1758262155626,11.32340007,245.38,245.35,1e-08]
[1758262156428,11.99340007,245.38,245.35,1e-08]
[1758262156641,0.67,245.37,245.35,1e-08]
[1758262158232,0.67,245.36,245.35,1e-08]
[1758262164551,0.73,245.36,245.35,1e-08]
[1758262167546,4.80564395,245.36,245.35,1e-08]
[1758262168543,5.80564395,245.36,245.35,1e-08]
[1758262169357,1.73,245.36,245.35,1e-08]
[1758262169555,1.06,245.36,245.35,1e-08]
[1758262173183,1.76,245.36,245.35,1e-08]
[1758262173961,1.06,245.36,245.35,1e-08]
[1758262174277,1.06,245.36,245.35,26.42432315]
[1758262174476,1.06,245.36,245.35,28.05594396]
[1758262174870,1.06,245.36,245.35,2.05594396]
[1758262175069,1.06,245.36,245.35,32.13175402]
[1758262176452,1.06,245.36,245.35,63.27175402]
[1758262177577,1.06,245.36,245.35,63.13175402]
[1758262178469,1.06,245.36,245.35,37.13175402]
[1758262182172,1.76,245.36,245.35,36.84743088]
[1758262182405,1.06,245.36,245.35,35.21581007]
[1758262183979,1.06,245.36,245.35,26.00000001]
[1758262184275,1.06,245.36,245.35,57.14000001]
[1758262186091,1.06,245.36,245.35,61.21581007]
[1758262187283,1.06,245.36,245.35,30.07581007]
[1758262187464,1.76,245.36,245.35,57.14000001]
[1758262188796,1.06,245.36,245.35,61.21581007]
[1758262189295,0.06,245.36,245.35,61.21581007]
[1758262189669,0.76,245.36,245.35,61.21581007]
[1758262193995,0.76,245.36,245.35,30.07581007]
[1758262194199,0.76,245.36,245.35,61.21581007]
[1758262194589,0.76,245.36,245.35,30.07581007]
[1758262194898,0.76,245.36,245.35,61.21581007]
[1758262195793,0.06,245.36,245.35,61.50013321]
[1758262196479,0.06,245.36,245.35,61.21581007]
[1758262196669,0.74,245.36,245.35,61.21581007]
[1758262198300,0.06,245.36,245.35,61.21581007]
[1758262199383,0.06,245.36,245.35,61.64013321]
[1758262199786,0.06,245.36,245.35,63.13175402]
[1758262200584,0.06,245.36,245.35,63.67933502]
[1758262201178,0.06,245.36,245.35,63.53933502]
[1758262201498,0.06,245.36,245.35,63.67933502]
[1758262202097,0.06,245.36,245.35,63.53933502]
[1758262209004,0.06,245.36,245.35,63.67933502]
[1758262209408,0.06,245.36,245.35,63.53933502]
[1758262211793,0.06,245.36,245.35,63.13175402]
[1758262212314,0.74,245.36,245.35,63.13175402]
[1758262212712,0.06,245.36,245.35,63.13175402]
[1758262213815,0.06,245.36,245.35,63.53933502]
[1758262214699,0.06,245.36,245.35,63.13175402]
[1758262216017,0.06,245.36,245.35,63.53933502]
[1758262223332,0.06,245.38,245.35,63.53933502]
[1758262223333,0.06,245.38,245.36,0.28432314]
[1758262223507,0.06,245.41,245.4,26.0]
[1758262223693,0.06,245.41,245.4,57.12]
[1758262224098,0.06,245.41,245.4,58.75115506]
[1758262224401,0.06,245.41,245.4,62.82613468]
[1758262224591,0.06,245.41,245.4,63.11045782]
[1758262228723,0.77,245.41,245.4,63.11045782]
[1758262229132,0.06,245.41,245.4,63.11045782]
[1758262229905,5.68239992,245.44,245.43,26.0]
[1758262230218,0.06,245.46,245.44,0.28432314]
[1758262230414,0.06,245.46,245.44,3.57927445]
[1758262230718,0.06,245.46,245.44,5.21016349]
[1758262231225,0.06,245.46,245.45,35.19414952]
[1758262231921,0.06,245.47,245.45,47.51391775]
[1758262232127,0.06,245.47,245.45,49.1447403]
[1758262232725,0.06,245.47,245.46,0.28432314]
[1758262233326,0.06,245.47,245.46,1.91501272]
[1758262233922,0.06,245.47,245.46,5.98899626]
[1758262235027,0.06,245.47,245.46,19.58459027]
[1758262235429,0.06,245.48,245.47,0.28432314]
[1758262235612,0.06,245.48,245.47,31.40432314]
[1758262235930,0.06,245.5,245.49,30.07348568]
[1758262236123,0.06,245.5,245.49,61.19348568]
[1758262236738,0.06,245.5,245.49,63.10829899]
[1758262238543,0.77,245.5,245.49,31.98829899]
[1758262239037,0.77,245.5,245.49,63.10829899]
[1758262239225,0.77,245.5,245.49,62.96613742]
[1758262243136,0.77,245.5,245.49,63.10829899]
[1758262250248,4.84331975,245.5,245.41,7.37882053]
[1758262250455,0.71,245.49,245.45,26.0]
[1758262250663,4.13331975,245.5,245.49,26.0]
[1758262251365,4.84331975,245.5,245.49,26.0]
[1758262252259,4.84331975,245.5,245.46,4.13249587]
[1758262252431,4.13331975,245.5,245.4,4.10481882]
[1758262252630,4.13331975,245.5,245.43,12.23416185]
[1758262252631,0.71,245.49,245.43,12.23416185]
[1758262252843,0.71,245.48,245.43,12.23416185]
[1758262253043,0.71,245.47,245.4,0.03]
[1758262253243,0.71,245.47,245.44,26.0]
[1758262253465,4.07414952,245.45,245.44,26.0]
[1758262253632,4.78414952,245.45,245.44,26.0]
[1758262254256,4.78414952,245.45,245.41,31.1]
[1758262254461,0.71,245.44,245.41,31.1]
[1758262254763,0.71,245.43,245.41,31.1]
[1758262254947,0.71,245.42,245.41,31.1]
[1758262257554,0.71,245.42,245.41,26.0]
[1758262257749,0.71,245.42,245.4,0.03]
[1758262257936,0.71,245.42,245.41,57.12]
[1758262259845,0.71,245.42,245.41,26.0]
[1758262260044,0.71,245.42,245.41,57.12]
[1758262263258,0.71,245.42,245.4,57.15]
[1758262263458,4.07439984,245.44,245.4,31.15]
[1758262263640,0.66,245.41,245.4,31.15]
[1758262266153,0.66,245.41,245.4,35.22497962]
[1758262266364,0.06,245.48,245.4,35.22497962]
[1758262266566,0.72,245.48,245.43,26.0]
[1758262266770,0.72,245.48,245.44,31.12]
[1758262266938,0.66,245.47,245.45,4.07414952]
[1758262267434,0.06,245.48,245.46,31.12]
[1758262268360,0.06,245.48,245.46,32.75108855]
[1758262269173,0.66,245.47,245.46,35.19396706]
[1758262269567,0.66,245.47,245.46,26.0]
[1758262269865,2.134525,245.47,245.4,0.03]
[1758262270070,1.474525,245.41,245.4,0.03]
[1758262270462,2.134525,245.41,245.4,0.03]
[1758262271102,21.4370194,245.41,245.4,0.03]
[1758262271381,19.80493258,245.41,245.4,0.03]
[1758262271866,21.72147575,245.41,245.4,0.03]
[1758262272169,41.35444215,245.38,245.37,0.03]
[1758262272372,72.51444215,245.38,245.37,0.03]
[1758262272571,73.17444215,245.38,245.37,0.03]
[1758262272957,0.28432314,245.36,245.33,0.03]
[1758262273153,15.07011901,245.34,245.33,0.03]
[1758262273357,15.73011901,245.34,245.33,0.03]
[1758262274545,21.2806202,245.34,245.33,0.03]
[1758262276477,18.3315702,245.34,245.33,0.03]
[1758262276788,22.91323994,245.34,245.33,0.03]
[1758262277589,52.61871494,245.34,245.33,0.03]
[1758262279389,54.09323994,245.34,245.33,0.03]
[1758262279581,53.98569497,245.34,245.33,0.03]
[1758262279978,52.51116997,245.34,245.33,0.03]
[1758262282499,52.57116997,245.34,245.33,0.03]
[1758262285900,54.04569497,245.34,245.33,0.03]
[1758262288302,22.86569497,245.34,245.33,0.03]
[1758262288486,54.02569497,245.34,245.33,0.03]
[1758262288690,52.55116997,245.34,245.33,0.03]
[1758262293684,50.91855023,245.34,245.33,0.03]
[1758262295202,19.75855023,245.34,245.33,0.03]
[1758262295412,35.27597619,245.34,245.33,0.03]
[1758262295589,35.98597619,245.34,245.33,0.03]
[1758262295903,5.61050119,245.34,245.33,0.03]
[1758262301395,6.32050119,245.34,245.33,0.03]
[1758262302317,5.61050119,245.34,245.33,0.03]
[1758262302810,6.32050119,245.34,245.33,0.03]
[1758262303310,19.9160952,245.34,245.33,0.03]
[1758262305407,51.0760952,245.34,245.33,0.03]
[1758262306089,50.3660952,245.34,245.33,0.03]
[1758262306296,19.2060952,245.34,245.33,0.03]
[1758262306719,19.9160952,245.34,245.33,0.03]
[1758262313513,51.0560952,245.34,245.33,0.03]
[1758262315506,19.9160952,245.34,245.33,0.03]
[1758262315910,13.59559401,245.33,245.3,0.03]
[1758262316211,23.42010629,245.32,245.3,0.03]
[1758262316410,59.46641478,245.32,245.3,0.03]
[1758262317025,58.44679683,245.32,245.3,0.03]
[1758262317407,57.73679683,245.32,245.3,0.03]
[1758262317812,58.44679683,245.32,245.3,0.03]
[1758262318119,58.75638249,245.32,245.3,0.03]
[1758262318321,59.46638249,245.32,245.3,0.03]
[1758262320825,58.75638249,245.32,245.3,0.03]
[1758262321008,26.47679683,245.32,245.31,0.79]
[1758262321213,26.47679683,245.32,245.31,0.13]
[1758262322124,12.88120282,245.32,245.31,0.13]
[1758262322306,12.88120282,245.32,245.31,0.79]
[1758262322902,12.88120282,245.32,245.31,0.13]
[1758262323606,11.40667782,245.32,245.31,0.13]
[1758262323824,12.88120282,245.32,245.31,0.13]
[1758262324997,7.33036933,245.32,245.31,0.79]
[1758262325418,11.40667782,245.32,245.31,0.79]
[1758262326122,11.40667782,245.32,245.31,0.13]
[1758262326323,12.88120282,245.32,245.31,0.13]
[1758262327404,28.20638921,245.32,245.31,0.13]
[1758262327727,29.22178926,245.32,245.31,0.13]
[1758262328726,26.01767188,245.32,245.31,0.13]
[1758262328902,27.49219688,245.32,245.31,0.13]
[1758262329823,28.32647884,245.32,245.31,0.13]
[1758262330423,29.03647884,245.32,245.31,0.13]
[1758262334332,29.09647884,245.32,245.31,0.13]
[1758262339123,28.38647884,245.32,245.31,0.13]
[1758262339333,29.09647884,245.32,245.31,0.13]
[1758262339908,28.38647884,245.32,245.31,0.13]
[1758262340335,29.09647884,245.32,245.31,0.13]
[1758262343713,28.38647884,245.32,245.31,0.13]
[1758262346529,14.79088483,245.32,245.31,0.13]
[1758262346828,29.07647884,245.32,245.31,0.13]
[1758262348130,54.58241323,245.32,245.31,0.13]
[1758262350317,85.78241323,245.32,245.31,0.13]
[1758262354718,85.78241323,245.32,245.31,1e-08]
[1758262355650,87.41529956,245.32,245.31,1e-08]
[1758262362350,87.6996227,245.32,245.31,1e-08]
[1758262364137,56.4996227,245.32,245.31,1e-08]
[1758262364447,87.6596227,245.32,245.31,1e-08]
[1758262367566,26.0,245.29,245.28,1e-08]
[1758262367728,77.42553115,245.29,245.28,1e-08]
[1758262367929,73.19294591,245.29,245.28,1e-08]
[1758262368150,78.20862277,245.29,245.28,1e-08]
[1758262369055,75.89981581,245.29,245.28,1e-08]
[1758262369232,78.20862277,245.29,245.28,1e-08]
[1758262372747,75.89981581,245.29,245.28,1e-08]
[1758262372941,78.20862277,245.29,245.28,1e-08]
[1758262381134,78.92862277,245.29,245.28,1e-08]
[1758262381536,78.20862277,245.29,245.28,1e-08]
[1758262385766,78.92862277,245.29,245.28,1e-08]
[1758262385953,78.20862277,245.29,245.28,1e-08]
[1758262386355,78.92862277,245.29,245.28,1e-08]
[1758262386866,78.98862277,245.29,245.28,1e-08]
[1758262388970,52.06120801,245.29,245.28,1e-08]
[1758262391771,51.2304191,245.29,245.28,1e-08]
[1758262395014,77.51474224,245.29,245.28,1e-08]
[1758262395302,90.93250313,245.29,245.28,1e-08]
[1758262395505,59.63250313,245.29,245.28,1e-08]
[1758262395805,59.34817999,245.29,245.28,1e-08]
[1758262395981,90.60817999,245.29,245.28,1e-08]
[1758262397484,59.34817999,245.29,245.28,1e-08]
[1758262397690,90.89250313,245.29,245.28,1e-08]
[1758262399300,59.63250313,245.29,245.28,1e-08]
[1758262399503,90.89250313,245.29,245.28,1e-08]
[1758262401894,90.60817999,245.29,245.28,1e-08]
[1758262402605,90.58817999,245.29,245.28,1e-08]
[1758262403483,59.34817999,245.29,245.28,1e-08]
[1758262403703,90.58817999,245.29,245.28,1e-08]
[1758262404004,59.34817999,245.29,245.28,1e-08]
[1758262404310,90.58817999,245.29,245.28,1e-08]
[1758262405092,59.34817999,245.29,245.28,1e-08]
[1758262405291,90.58817999,245.29,245.28,1e-08]
[1758262405894,59.34817999,245.29,245.28,1e-08]
[1758262406089,90.58817999,245.29,245.28,1e-08]
[1758262406788,59.34817999,245.29,245.28,1e-08]
[1758262407194,90.58817999,245.29,245.28,1e-08]
[1758262408196,59.34817999,245.29,245.28,1e-08]
[1758262408506,90.58817999,245.29,245.28,1e-08]
[1758262411807,90.56817999,245.29,245.28,1e-08]
[1758262414211,89.09016194,245.29,245.28,1e-08]
[1758262414415,89.84817999,245.29,245.28,1e-08]
[1758262415718,88.37016194,245.29,245.28,1e-08]
[1758262415927,89.84817999,245.29,245.28,1e-08]
[1758262420329,88.37016194,245.29,245.28,1e-08]
[1758262420533,62.37016194,245.29,245.28,0.67000001]
[1758262420827,63.84817999,245.29,245.28,0.67000001]
[1758262421208,32.62817999,245.29,245.28,0.67000001]
[1758262423143,32.62817999,245.29,245.28,1e-08]
[1758262424804,31.15016194,245.29,245.28,0.67000001]
[1758262425011,32.62817999,245.29,245.28,0.67000001]
[1758262426102,32.62817999,245.29,245.28,1e-08]
[1758262426306,33.28817999,245.29,245.28,1e-08]
[1758262430815,31.81016194,245.29,245.28,1e-08]
[1758262431021,33.28817999,245.29,245.28,1e-08]
[1758262438033,32.62817999,245.29,245.28,1e-08]
[1758262439833,33.28817999,245.29,245.28,1e-08]
[1758262440338,32.62817999,245.29,245.28,1e-08]
[1758262440526,17.55456793,245.29,245.28,1e-08]
[1758262440731,11.84460788,245.29,245.28,0.69000001]
[1758262440937,15.92141492,245.29,245.28,0.69000001]
[1758262441143,4.13680704,245.29,245.28,0.69000001]
[1758262444065,0.06,245.29,245.28,0.69000001]
[1758262447748,4.13680704,245.29,245.28,0.69000001]
[1758262449245,0.06,245.29,245.28,0.69000001]
[1758262450746,4.13680704,245.29,245.28,1e-08]
[1758262450920,0.06,245.29,245.28,0.69000001]
[1758262454631,0.06,245.29,245.28,1e-08]
[1758262454942,4.13680704,245.29,245.28,1e-08]
[1758262455157,4.79680704,245.29,245.28,1e-08]
[1758262455354,7.1054139,245.29,245.28,1e-08]
[1758262456367,6.4454139,245.29,245.28,1e-08]
[1758262456737,4.13680704,245.29,245.28,1e-08]
[1758262459362,4.79680704,245.29,245.28,1e-08]
[1758262462564,4.13680704,245.29,245.28,1e-08]
[1758262464270,4.13680704,245.29,245.28,1e-08]
[1758262464656,4.79680704,245.29,245.28,1e-08]
[1758262467550,7.1057545,245.29,245.28,1e-08]
[1758262475985,39.28115455,245.29,245.28,1e-08]
[1758262476903,40.91410754,245.29,245.28,1e-08]
[1758262477605,38.60516008,245.29,245.28,1e-08]
[1758262477888,1.07540005,245.29,245.28,1e-08]
[1758262478570,1.07540005,245.29,245.28,0.67000001]
[1758262479771,5.15220709,245.29,245.28,0.67000001]
[1758262481593,5.15220709,245.29,245.28,1e-08]
[1758262490392,1.07540005,245.29,245.28,0.67000001]
[1758262490589,5.15220709,245.29,245.28,1e-08]
[1758262491491,5.81220709,245.29,245.28,1e-08]
[1758262491898,5.15220709,245.29,245.28,1e-08]
[1758262492599,5.81220709,245.29,245.28,1e-08]
[1758262492803,5.15220709,245.29,245.28,1e-08]
[1758262494879,5.81220709,245.29,245.28,1e-08]
[1758262501615,5.15220709,245.29,245.28,1e-08]
[1758262502915,1.07540005,245.29,245.28,1e-08]
[1758262503404,5.86220709,245.29,245.28,1e-08]
[1758262503586,5.15220709,245.29,245.28,1e-08]
[1758262504910,1.07540005,245.29,245.28,0.68000001]
[1758262505288,1.07540005,245.29,245.28,1e-08]
[1758262512015,5.15220709,245.29,245.28,1e-08]
[1758262512516,5.86220709,245.29,245.28,1e-08]
[1758262516319,1.78540005,245.29,245.28,1e-08]
[1758262516517,1.07540005,245.29,245.28,1e-08]
[1758262518602,5.86220709,245.29,245.28,1e-08]
[1758262522905,1.07540005,245.29,245.28,1e-08]
[1758262524704,5.86220709,245.29,245.28,1e-08]
[1758262525924,5.15220709,245.29,245.28,1e-08]
[1758262527699,1.07540005,245.29,245.28,1e-08]
[1758262527902,1.07540005,245.29,245.28,2.15770189]
[1758262530821,1.07540005,245.29,245.28,6.23467514]
[1758262531936,1.07540005,245.29,245.28,7.86696177]
[1758262532113,1.07540005,245.29,245.28,34.15128491]
[1758262535231,1.07540005,245.29,245.28,8.15128491]
[1758262536021,0.06,245.34,245.31,39.59559401]
[1758262536228,0.06,245.35,245.33,21.26842655]
[1758262536422,0.06,245.35,245.34,7.3885094]
[1758262536622,0.06,245.35,245.34,21.62480616]
[1758262536828,0.06,245.35,245.34,9.70013021]
[1758262537528,0.06,245.35,245.34,13.7761064]
[1758262540725,0.06,245.35,245.34,17.09479815]
[1758262541531,0.06,245.35,245.34,29.46212511]
[1758262542123,0.06,245.35,245.34,43.34204226]
[1758262543020,0.06,245.37,245.36,26.0]
[1758262543222,0.06,245.37,245.36,58.61770188]
[1758262543520,0.06,245.37,245.36,59.29770188]
[1758262543749,0.68,245.46,245.38,0.28432314]
[1758262543922,0.68,245.46,245.38,16.83532091]
[1758262544123,0.68,245.45,245.38,17.51532091]
[1758262544540,0.68,245.45,245.38,19.14660901]
[1758262544848,0.68,245.44,245.38,23.22192077]
[1758262545539,0.68,245.44,245.38,54.34192077]
[1758262547740,0.06,245.48,245.38,21.74421889]
[1758262547941,0.68,245.43,245.38,52.86421889]
[1758262549242,0.74,245.48,245.46,0.28432314]
[1758262549431,0.06,245.48,245.47,32.59770188]
[1758262549939,0.06,245.48,245.47,34.22865742]
[1758262550242,0.74,245.48,245.47,34.22865742]
[1758262550855,0.74,245.48,245.47,38.30247499]
[1758262551061,0.74,245.48,245.47,36.82477311]
[1758262551238,0.74,245.48,245.47,38.30247499]
[1758262552830,0.74,245.48,245.47,34.22865742]
[1758262554154,0.74,245.48,245.47,38.30247499]
[1758262554362,0.74,245.48,245.47,7.18247499]
[1758262554536,0.74,245.48,245.47,38.30247499]
[1758262555239,0.74,245.48,245.47,1.63095554]
[1758262555430,0.74,245.48,245.36,0.67]
[1758262555431,4.81365474,245.48,245.43,1.47770188]
[1758262555636,0.69,245.47,245.43,1.47770188]
[1758262555946,0.69,245.46,245.44,1.47770188]
[1758262556143,0.69,245.45,245.42,1.63135463]
[1758262556330,0.69,245.44,245.43,32.59770188]
[1758262558446,0.69,245.44,245.43,58.59770188]
[1758262559462,4.76440436,245.44,245.39,1.47770188]
[1758262559757,0.69,245.43,245.37,31.58770188]
[1758262559937,0.69,245.43,245.37,1.50770188]
[1758262560265,0.69,245.42,245.37,32.62770188]
[1758262560462,5.55210624,245.44,245.37,32.62770188]
[1758262560463,0.69,245.41,245.37,32.62770188]
[1758262560637,0.69,245.4,245.38,1.47770188]
[1758262560835,0.69,245.44,245.39,32.59770188]
[1758262561058,4.07415751,245.47,245.43,7.3885094]
[1758262561059,0.69,245.47,245.43,7.3885094]
[1758262561368,0.69,245.47,245.46,1.47770188]
[1758262561543,0.06,245.48,245.46,32.59770188]
[1758262561743,0.06,245.48,245.47,1.47770188]
[1758262562133,0.75,245.48,245.47,1.47770188]
[1758262563045,4.82366374,245.48,245.46,31.12]
[1758262563249,0.69,245.47,245.45,31.12]
[1758262563448,2.16770188,245.46,245.37,0.03]
[1758262563748,2.16770188,245.46,245.39,1.47770188]
[1758262563955,0.69,245.45,245.4,1.47770188]
[1758262564151,0.69,245.44,245.41,1.47770188]
[1758262564334,0.69,245.43,245.41,1.47770188]
[1758262564535,0.69,245.42,245.41,1.47770188]
[1758262565655,4.76464754,245.42,245.41,1.47770188]
[1758262565962,4.76464754,245.42,245.38,1.47770188]
[1758262566135,0.69,245.41,245.38,1.47770188]
[1758262566341,0.69,245.4,245.38,1.47770188]
[1758262566545,0.69,245.39,245.38,1.47770188]
[1758262570165,0.69,245.41,245.38,1.47770188]
[1758262570374,0.69,245.4,245.39,1.47770188]
[1758262570841,0.69,245.4,245.37,31.17]
[1758262571041,0.69,245.4,245.39,1.47770188]
[1758262572458,0.06,245.42,245.39,5.55281439]
[1758262572667,0.06,245.42,245.41,1.47770188]
[1758262572873,0.06,245.42,245.41,27.47770188]
[1758262573050,0.06,245.42,245.41,32.22251545]
[1758262573878,0.06,245.42,245.41,36.98735094]
[1758262575682,0.06,245.42,245.41,37.27167408]
[1758262575882,0.06,245.42,245.41,40.40357504]
[1758262576970,0.06,245.42,245.41,71.54357504]
[1758262577896,0.06,245.42,245.41,85.13916905]
[1758262578080,0.06,245.45,245.44,26.0]
[1758262578284,0.06,245.45,245.44,59.85223297]
[1758262578579,0.06,245.45,245.44,60.52223297]
[1758262579277,0.06,245.45,245.44,60.11480142]
[1758262580106,0.06,245.45,245.44,64.18911693]
[1758262581574,0.06,245.45,245.44,33.04911693]
[1758262581775,0.06,245.45,245.44,64.18911693]
[1758262582204,0.06,245.45,245.44,65.82007246]
[1758262583006,0.06,245.45,245.44,79.69998961]
[1758262584230,0.06,245.45,245.44,80.10742116]
[1758262584407,0.06,245.45,245.44,48.96742116]
[1758262584608,0.06,245.45,245.44,79.69998961]
[1758262585927,0.1,245.49,245.48,13.59559401]
[1758262586093,0.06,245.51,245.5,26.0]
[1758262586290,0.06,245.51,245.5,61.74960284]
[1758262586693,0.06,245.51,245.5,63.38015947]
[1758262588110,0.06,245.51,245.5,67.45347922]
[1758262588310,0.06,245.51,245.5,68.16347922]
[1758262588706,0.06,245.51,245.5,67.45347922]
[1758262593702,0.06,245.53,245.5,78.63110174]
[1758262593941,0.06,245.53,245.52,4.89392598]
[1758262594102,0.06,245.53,245.52,36.11392598]
[1758262595416,0.06,245.53,245.52,40.18691392]
[1758262596320,0.78,245.53,245.5,4.07315445]
[1758262596526,0.06,245.53,245.52,2.30480142]
[1758262596731,0.06,245.53,245.52,33.52480142]
[1758262596929,0.06,245.53,245.52,59.52480142]
[1758262597221,0.78,245.53,245.52,59.52480142]
[1758262597401,0.78,245.53,245.52,57.22]
[1758262597608,0.78,245.53,245.52,59.52480142]
[1758262600423,0.78,245.53,245.45,4.13250233]
[1758262600740,3.02480142,245.52,245.45,4.13250233]
[1758262600944,2.30480142,245.5,245.46,31.24]
[1758262601103,0.72,245.49,245.46,31.24]
[1758262601413,0.72,245.48,245.46,33.54480142]
[1758262601601,0.72,245.47,245.46,33.54480142]
[1758262601803,0.72,245.47,245.46,31.24]
[1758262602030,0.72,245.47,245.46,33.54480142]
[1758262603717,0.72,245.51,245.46,33.54480142]
[1758262603914,0.72,245.51,245.5,2.30480142]
[1758262604113,0.72,245.51,245.5,33.56480142]
[1758262606527,0.72,245.51,245.5,2.30480142]
[1758262606714,0.72,245.51,245.5,33.56480142]
[1758262607419,0.72,245.51,245.5,2.30480142]
[1758262607617,0.72,245.51,245.5,33.54480142]
[1758262608243,0.72,245.51,245.5,33.57480142]
[1758262608619,0.78,245.51,245.5,33.57480142]
[1758262610350,0.06,245.51,245.5,33.57480142]
[1758262610651,0.06,245.51,245.5,37.64812117]
[1758262611144,0.06,245.51,245.5,38.35812117]
[1758262612143,0.06,245.51,245.5,35.34331975]
[1758262612346,0.06,245.51,245.5,37.64812117]
[1758262618211,0.06,245.51,245.5,37.62812117]
[1758262618618,0.06,245.51,245.5,28.33480142]
[1758262618825,0.73,245.51,245.5,31.23]
[1758262620546,0.73,245.51,245.5,33.53480142]
[1758262621851,0.73,245.51,245.5,0.03]
[1758262622662,0.73,245.51,245.5,31.23]
[1758262623064,0.73,245.51,245.5,0.03]
[1758262624548,0.06,245.51,245.5,0.03]
[1758262625630,0.06,245.51,245.5,2.33480142]
[1758262627151,0.73,245.51,245.5,2.33480142]
[1758262628651,0.73,245.51,245.5,0.03]
[1758262628830,0.73,245.51,245.5,2.33480142]
[1758262629250,0.06,245.51,245.5,2.33480142]
[1758262629830,0.06,245.51,245.5,9.67724573]
[1758262630556,0.06,245.51,245.5,23.27283974]
[1758262630731,0.06,245.53,245.52,48.56250793]
[1758262630933,0.06,245.53,245.52,79.78250793]
[1758262631139,0.06,245.53,245.52,80.46250793]
[1758262631341,0.1,245.54,245.53,13.87991715]
[1758262631655,0.06,245.55,245.53,16.86471857]